Cogmind - Beta 14 @@@ ROGUE MODE // 2024.08.10 @ 18:38:27 Player: p0pp3t Result: Destroyed by as-82750 with Assembled Heavy Rifle Performance ------------- Evolutions (1) 500 Regions Visited (3) 600 Robots Destroyed (27) 135 Value Destroyed (909) 909 Prototype IDs (0) 0 Alien Tech Used (0) 0 Bonus (0) 0 TOTAL SCORE: 2144 Bonus ------- None Cogmind --------- Core Integrity 0/400 Matter 208/300 Energy 380/380 System Corruption 0% Temperature Cool (0) Movement Walking (120) Location -9/Mines Parts ------- > --- POWER (2) -------- Nuclear Core Nuclear Core > --- PROPULSION (3) --- Carbon-fiber Leg Carbon-fiber Leg Carbon-fiber Leg > --- UTILITY (2) ------ Small Storage Unit Advanced Visual Processing Unit > --- WEAPON (2) ------- Heavy Flail Heavy Flail > --- INVENTORY (8) ---- Ion Engine Ion Engine Ion Engine Ion Engine Nuclear Core Carbon-fiber Leg Particle Cannon Peak State ------------ > --- POWER ------------ Nuclear Core Nuclear Core > --- PROPULSION ------- Carbon-fiber Leg Carbon-fiber Leg Carbon-fiber Leg > --- UTILITY ---------- Small Storage Unit Advanced Visual Processing Unit > --- WEAPON ----------- Heavy Flail Heavy Flail > --- INVENTORY -------- Ion Engine Ion Engine Ion Engine Ion Engine Nuclear Core Carbon-fiber Leg Particle Cannon [Rating: 26] Favorites ----------- Power Ion Engine Engine Ion Engine Power Core Nuclear Core Propulsion Armored Treads Treads Armored Treads Leg Aluminum Leg Utility Small Storage Unit Device ECM Suite Storage Small Storage Unit Processor Advanced Visual Processing Unit Protection Light Armor Plating Weapon Light Assault Rifle Energy Gun Small Laser Energy Cannon Particle Cannon Ballistic Gun Light Assault Rifle Special Weapon Mining Laser Impact Weapon Heavy Flail Build | -11 -10 -9 -9 ------- Run | Yrd Mat Mat Min Slots Evolved 2 | . . 2 . Power 1 | . . 1 . Propulsion 1 | . . 1 . Utility . | . . . . Weapon . | . . . . Parts Attached 45 | 7 6 29 3 Power 9 | 2 1 4 2 Engine 7 | 2 1 4 . Core 2 | . . . 2 Reactor . | . . . . Propulsion 13 | 2 . 11 . Treads 8 | 2 . 6 . Leg 5 | . . 5 . Wheel . | . . . . Hover . | . . . . Flight . | . . . . Utility 10 | 1 4 4 1 Device 1 | . 1 . . Storage 3 | 1 2 . . Processor 1 | . . . 1 Hackware . | . . . . Protection 5 | . 1 4 . Artifact . | . . . . Weapon 13 | 2 1 10 . Energy Gun 6 | 1 . 5 . Energy Cannon 2 | . . 2 . Ballistic Gun 1 | 1 . . . Ballistic Cannon . | . . . . Launcher . | . . . . Special Weapon 2 | . 1 1 . Impact Weapon 2 | . . 2 . Slashing Weapon . | . . . . Piercing Weapon . | . . . . Special Melee Weapon . | . . . . Unidentified Prototypes . | . . . . Parts Lost 17 | . 1 16 . Power 3 | . . 3 . Propulsion 5 | . . 5 . Utility 3 | . 1 2 . Weapon 6 | . . 6 . Highest Loss Streak 5 | . 1 5 . To Critical Strikes . | . . . . Average Slot Usage (%) 82 | . 89 78 92 Engine 13 | . 14 13 . Treads 23 | . 28 22 . Leg 2 | . . 3 33 Storage 12 | . 14 11 11 Protection 6 | . 3 8 . Energy Gun 9 | . 12 8 . Energy Cannon 3 | . . 5 . Ballistic Gun 6 | . 14 2 . Special Weapon 1 | . 1 1 . Impact Weapon 1 | . . 2 22 Peak Build Rating 26 | 6 7 19 26 Average Rating 10 | 2 6 13 23 On Entrance 8 | . 6 7 19 Naked Turns . | . . . . Heaviest Build 27 | 12 15 27 25 Greatest Support 60 | 40 40 60 45 Greatest Overweight (x) 3 | 3 . 3 . Average Overweight (x) . | . . . . Largest Inventory Capacity 25 | 8 25 8 8 Average Capacity 7 | 7 8 8 8 Most Carried 8 | 2 5 8 8 Average Carried 3 | . . 5 7 Final Capacity 8 | 8 8 8 8 Final Carried 8 | 1 2 8 7 Class Distribution -------------------- 92% | Mutant 7% | Scavenger-Mutant Dominant Class ---------------- Mutant | -10/Materials Mutant | -9/Materials Mutant | -9/Mines Resources | -11 -10 -9 -9 ----------- Run | Yrd Mat Mat Min Matter Collected 560 | 229 107 224 . Remotely . | . . . . Salvage Created 1028 | . 174 831 23 Parts 45 | . 11 34 . Haulers Intercepted 1 | . . 1 . Recyclers Shooed 1 | . . 1 . Parts Field Recycled . | . . . . Retrieved Matter . | . . . . Parts Self-Destructed . | . . . . Prevented . | . . . . Kills | -11 -10 -9 -9 ------- Run | Yrd Mat Mat Min Combat Hostiles Destroyed 26 | . 6 18 2 Melee 3 | . . 1 2 Guns 14 | . 6 8 . Cannons 5 | . . 5 . Classes Destroyed 9 | . 2 6 1 Builder 1 | . . 1 . Hauler 1 | . . 1 . Watcher 1 | . . 1 . Swarmer 2 | . 2 . . Grunt 16 | . 4 12 . Brawler 1 | . . 1 . Duelist 1 | . . 1 . Sentry 4 | . . 4 . Assembled 2 | . . . 2 Best Kill Streak 4 | . 2 4 2 Combat Bots Only 4 | . 2 4 2 Max Kills in Single Turn 2 | . 1 1 2 Gunslinging . | . . . . Exploded . | . . . . Melee 2 | . . 1 2 Uniques/NPCs Destroyed . | . . . . Combat | -11 -10 -9 -9 -------- Run | Yrd Mat Mat Min Hostile Shots Fired 347 | . 69 263 15 Missed 97 | . 13 80 4 Damage Taken 3146 | . 613 2320 213 Core 496 | . 96 386 14 Absorbed by Shields . | . . . . Core Remaining (%) 80 | 100 61 . . Volleys Fired 85 | . 34 51 . Largest 2 | . 2 2 . Hottest 133 | . 120 133 . Shots Fired 150 | . 60 90 . Gun 107 | . 53 54 . Cannon 25 | . . 25 . Launcher . | . . . . Special 18 | . 7 11 . Kinetic 47 | . 34 13 . Thermal 72 | . 26 46 . Explosive . | . . . . Electromagnetic 31 | . . 31 . Robot Hit Streak 10 | . 6 10 . Robot Miss Streak 4 | . 4 4 . Penetration Max . | . . . . Secondary Targets 2 | . 1 1 . Max Gunslinging Chain 1 | . 1 1 . Shots Hit Robots 105 | . 31 71 3 Core Hits 47 | . 13 32 2 Critical Kills 3 | . . 2 1 Critical Parts Destroyed 1 | . . 1 . Critical Strikes 4 | . . 3 1 Meltdown 1 | . . 1 . Destroy 1 | . . 1 . Smash 2 | . . 1 1 Melee Attacks 10 | . . 5 5 Impact 10 | . . 5 5 Slashing . | . . . . Piercing . | . . . . Sneak Attacks . | . . . . Combat Hostiles . | . . . . Follow-up Attacks 2 | . . 1 1 Damage Inflicted 1717 | . 291 1268 158 Guns 780 | . 267 513 . Cannons 371 | . . 371 . Explosions 39 | . . 39 . Melee 370 | . . 212 158 Ramming 13 | . . 13 . Kinetic 235 | . 148 87 . Thermal 775 | . 143 632 . Explosive . | . . . . Electromagnetic 324 | . . 324 . Impact 370 | . . 212 158 Slashing . | . . . . Piercing . | . . . . Highest Corruption . | . . . . Average Corruption . | . . . . Corruption Purged . | . . . . Corruption Blocked . | . . . . Overload Shots . | . . . . Overflow Damage 83 | . . 83 . Projectiles . | . . . . Explosions . | . . . . Melee 83 | . . 83 . Knockbacks 2 | . . 1 1 Impact 2 | . . 1 1 Kinetic . | . . . . Secondary . | . . . . Self-Inflicted Damage 31 | . . 31 . Shots 1 | . . 1 . Rammed 7 | . . 7 . Targets Rammed 8 | . . 8 . Kicked . | . . . . Crushed 1 | . . 1 . Highest Temperature 557 | . 307 557 8 Average Temperature 152 | . 111 170 8 Received Heat Transfer 1398 | . 264 1074 60 Effects 11 | . . 11 . Shutdowns 2 | . . 2 . Energy Bleed 2 | . . 2 . Interference 2 | . . 2 . Short Circuit 1 | . . 1 . Damage (major) 4 | . . 4 . Siege Activations . | . . . . Robots Corrupted 2 | . . 2 . Combat Hostiles 2 | . . 2 . Parts Fried 2 | . . 2 . Impact Corruptions 4 | . . 4 . Robots Melted 2 | . . 2 . Combat Hostiles 2 | . . 2 . Parts Melted 6 | . . 6 . Heat Transferred 1600 | . 325 1275 . Parts Sabotaged . | . . . . Parts Stolen . | . . . . Parts Stripped . | . . . . Power Chain Reactions 1 | . . 1 . Alert | -11 -10 -9 -9 ------- Run | Yrd Mat Mat Min Peak Influence 212 | . 143 212 73 Initial 58 | . . 12 58 Average 67 | . 27 101 67 Maximum Alert Level 1 | . . 1 . Low Security (%) 98 | 100 100 97 100 Level 1 1 | . . 2 . Level 2 . | . . . . Level 3 . | . . . . Level 4 . | . . . . Level 5 . | . . . . High Security . | . . . . Max Security . | . . . . Squads Dispatched 3 | . . 3 . Investigation 3 | . . 3 . Extermination . | . . . . Reinforcement . | . . . . Assault . | . . . . Garrison . | . . . . Intercept . | . . . . Searches Triggered . | . . . . Construction Impeded . | . . . . Haulers Reinforced . | . . . . Active Scanning Responses . | . . . . Cargo Convoy Interrupts . | . . . . Stealth | -11 -10 -9 -9 --------- Run | Yrd Mat Mat Min Distress Signals 1 | . . 1 . Communications Jammed . | . . . . Distress Signals . | . . . . Times Spotted 43 | . 9 27 7 Peak Tracking Total 9 | . 4 6 9 Tactical Retreats 9 | . 3 5 1 Traps | -11 -10 -9 -9 ------- Run | Yrd Mat Mat Min Traps Triggered 2 | . . 2 . Indirectly . | . . . . Trap Hack Attempts . | . . . . Triggered . | . . . . Disarmed . | . . . . Reprogrammed . | . . . . Reused . | . . . . Traps Extracted . | . . . . Installed . | . . . . Triggered . | . . . . Machines | -11 -10 -9 -9 ---------- Run | Yrd Mat Mat Min Machines Disabled 2 | . . 2 . Max in Single Turn 1 | . . 1 . Machines Repaired . | . . . . Machines Dismantled . | . . . . Machines Sabotaged . | . . . . Overloaded Fab Kills . | . . . . Hacking | -11 -10 -9 -9 --------- Run | Yrd Mat Mat Min Machines Accessed 6 | . 2 4 . Terminals 4 | . 2 2 . Fabricators . | . . . . Repair Stations . | . . . . Recycling Units 1 | . . 1 . Scanalyzers 1 | . . 1 . Garrison Access . | . . . . Total Hacks 17 | . 3 14 . Successful 9 | . 1 8 . Failed 8 | . 2 6 . Catastrophic 1 | . . 1 . Database Lockouts . | . . . . Manual . | . . . . Terminals 9 | . 3 6 . Fabricators . | . . . . Repair Stations . | . . . . Recycling Units 3 | . . 3 . Scanalyzers 5 | . . 5 . Garrison Access . | . . . . Terminal Hacks 3 | . 1 2 . Record 1 | . . 1 . Alert Level 1 | . 1 . . Registered Prototypes 1 | . . 1 . Fabricator Hacks . | . . . . Repair Station Hacks . | . . . . Recycling Unit Hacks 2 | . . 2 . Recycle Component 1 | . . 1 . Process 1 | . . 1 . Scanalyzer 4 | . . 4 . Insert Component 2 | . . 2 . Analyze 2 | . . 2 . Garrison Access Hacks . | . . . . Unauthorized Hacks . | . . . . Terminals . | . . . . Fabricators . | . . . . Repair Stations . | . . . . Recycling Units . | . . . . Scanalyzers . | . . . . Garrison Access . | . . . . Data Cores Recovered . | . . . . Used . | . . . . Hacking Detections 5 | . 1 4 . Full Trace Events 3 | . . 3 . Feedback Events . | . . . . Feedback Blocked . | . . . . Robot Schematics Acquired . | . . . . Robots Built . | . . . . Authchips . | . . . . Time . | . . . . Total Robot Build Rating . | . . . . Part Schematics Acquired 2 | . . 2 . Parts Built . | . . . . Authchips . | . . . . Time . | . . . . Total Part Build Rating . | . . . . Parts Repaired . | . . . . Time . | . . . . Parts Recycled 1 | . . 1 . Recycled Matter 277 | . . 277 . Retrieved Matter . | . . . . Retrieved Components . | . . . . Parts Scanalyzed 2 | . . 2 . Part Schematics Acquired 2 | . . 2 . Parts Damaged . | . . . . Bothacking | -11 -10 -9 -9 ------------ Run | Yrd Mat Mat Min Used RIF Installer . | . . . . Robots Hacked . | . . . . Non-combat . | . . . . Combat . | . . . . Robot Hacks Applied . | . . . . Relay Couplers Released . | . . . . Fabnet Peak Effective % . | . . . . Robots Rewired . | . . . . Allies Hacked . | . . . . Hacks Repelled . | . . . . Allies | -11 -10 -9 -9 -------- Run | Yrd Mat Mat Min Total Allies . | . . . . Largest Group . | . . . . Highest-Rated Group . | . . . . Highest-Rated Ally . | . . . . Total Orders . | . . . . Ally Attacks . | . . . . Total Damage . | . . . . Kills . | . . . . Allies Corrupted . | . . . . Allies Melted . | . . . . Intel | -11 -10 -9 -9 ------- Run | Yrd Mat Mat Min Robot Analysis Total . | . . . . Derelict Logs Recovered . | . . . . Drone Launches . | . . . . Drone Recoveries . | . . . . Exploration | -11 -10 -9 -9 ------------- Run | Yrd Mat Mat Min Turns Passed 2440 | 214 819 1356 51 Spaces Moved 1295 | 209 431 624 31 Core 158 | 143 . 15 . Treads 1016 | 66 431 519 . Legs 121 | . . 90 31 Wheels . | . . . . Hover . | . . . . Flight . | . . . . Fastest Speed 50 | 50 160 100 120 Average Speed 153 | 97 160 168 120 Slowest Speed 260 | 200 160 260 120 Overloaded Moves . | . . . . Propulsion Burnouts . | . . . . Robots Hopped . | . . . . Cave-ins Triggered . | . . . . Exploration Rate (%) 23 | 6 40 38 8 Regions Visited 3 Branch Regions 1 Pre-discovered Areas . | . . . . Known Exits Taken . | . . . . Unknown Exits Taken 3 | 1 1 1 . Scrap Searched . | . . . . Spaces Dug . | . . . . Terrain Destroyed 8 | . 3 5 . Melee . | . . . . Projectile 5 | . 3 2 . AOE 3 | . . 3 . Terrain Rammed . | . . . . Walls Destroyed . | . . . . Machines Disabled . | . . . . Actions | -11 -10 -9 -9 --------- Run | Yrd Mat Mat Min Total 1558 | 217 494 809 38 Wait 66 | . 12 54 . Move 1292 | 208 430 623 31 Hop . | . . . . Pick Up 33 | 2 7 24 . Fast Attach 16 | 4 . 12 . Attach 17 | 2 3 11 1 Detach 6 | . 1 5 . Swap 12 | 1 3 6 2 Drop 15 | . 4 11 . Fire 85 | . 34 51 . Melee 8 | . . 4 4 Ram 6 | . . 6 . Kick . | . . . . Crush 2 | . . 2 . Escape Stasis . | . . . . Rewire . | . . . . Trap . | . . . . Miscellaneous . | . . . . Route ------- -11/Scrapyard -10/Materials -9/Materials (discovered 2 exits: [*Min] / [*Sto]) -9/Mines History --------- Turn | Location | Event 13 | -11/Scrapyard | Discovered new exit (range 13) 215 | -11/Scrapyard | Entered Materials 274 | -10/Materials | Met 8R-AWN 311 | -10/Materials | Build established: Mutant 869 | -10/Materials | Discovered new exit (range 14) 1034 | -10/Materials | Entered another Materials area 1034 | -9/Materials | Evolved 2 slots: Power x1, Propulsion x1 1165 | -9/Materials | Lost 4 parts (1p2n1w) 1557 | -9/Materials | Discovered new exit (range 11) 2096 | -9/Materials | Lost 5 parts (1p1n1u2w) 2141 | -9/Materials | Core integrity fell below 50% 2163 | -9/Materials | Lost 3 parts (1p1n1w) 2182 | -9/Materials | Core integrity fell below 20% 2249 | -9/Materials | Discovered new exit (range 14) 2390 | -9/Materials | Entered Mines 2391 | -9/Mines | Assembled infested the area 2396 | -9/Mines | Assisted by a Guerilla fighting off Assembled 2441 | -9/Mines | Destroyed by as-82750 with Assembled Heavy Rifle Last Messages --------------- 02357_ Dropped Aluminum Leg. 02358_ Acquired Carbon-fiber Leg. 02372_ Acquired Nuclear Core. LOCATION=UNKNOWN GOAL=ESCAPE 02391_ ALERT: Infestation in the mines, dispatching Demolisher response squad. 02396_ A derelict emerges from the shadows: "You need to get out of here! I've been tracking a group of Assembled to figure out where they're coming from, and they're closing on this area, come on!" 02410_ 5E-D8R(h): "I'll hold them off! Go on ahead or try to find another way!" 02434_ as-26852 knocked back. 02439_ as-26852 destroyed. 02439_ Hvy. Flail follow-up attack on as-98819. 02439_ as-98819 suffers critical hit (Smash). 02439_ as-98819 destroyed. [Achievement: Ambidextrous] Map ----- +----------------------------------------------------+ | ??????????????????????????????????????????? | | ??????????????????????????????????????????? | | ??????????????????????????????????????????? | | ??????????????????????????????????????????? | | ??????????????????????????????????????????? | | ??????????????????????????????????????????? | | ??????????????????????????????????????????? | | ??????????????????????????????????????????? | | ??????????????????????????????????????????? | | ??????????????????????????????????????????? | | ??????????????????????????????????????????? | | ??????????????????????????????????????????? | | ??????????????????????????????????????????? | | ??????????????????????????????????????????? | | ??????????????????????????????????????????? | | ??????????????????????????????????????????? | | ??????????????????????????????????????????? | | ??????????????????????????????????????????? | | ??????????????????????????????????????????? | | ??????????????????????????????????????????? | | ??????????????????????????????????????????? | | ???????????????#####??????????????????????? | | ??????????###### ##?????????????????????? | | ????????### ## #?????????????????????? | | ???????## #?????????????????????? | | ???????# %@#??????????????????????? | | ???????# a%##??????????????????????? | | ???????## #???????????????????????? | | ????????# $ #???????????????????????? | | ????????# a #???????????????????????? | | ???????## #???????????????????????? | | ???????# #???????????????????????? | | ??????## #???????????????????????? | | ?????## ## ##???????????????????????? | | ?????# #### ##???????????????????????? | | ????# #??# #### #????????????? | | ???# ##??# #???????????? | | ???# ####???## #???????????? | | ???###????????######## #### ????????????? | | ???????????????????????##?????????????????? | | ??????????????????????????????????????????? | | ??????????????????????????????????????????? | | ??????????????????????????????????????????? | | ??????????????????????????????????????????? | | ??????????????????????????????????????????? | | ??????????????????????????????????????????? | | ??????????????????????????????????????????? | | ??????????????????????????????????????????? | | ??????????????????????????????????????????? | | ??????????????????????????????????????????? | +----------------------------------------------------+ Best States ------------- Heat Dissipation 28 Energy Generation 23 Energy Capacity 400 Matter Stores 300 Matter Capacity 300 Sight Range 20 Terrain Scan Density 10 ECM Strength 1 Armor Coverage 150 Evasion (%) 55 Recoil Reduction 3 Item Schematics ----------------- ECM Suite | -9/Materials | Scanalyzed Heat Sink | -9/Materials | Scanalyzed Robot Schematics ------------------ None Fabricated ------------ Nothing Alien Tech Used ----------------- None Achievements -------------- Ambidextrous Crack Shot Fist Fight It's Just You Challenges ------------ None Game ------ Seed MetafiberExoskeletonThrower Manual? 0 Play Time 01:16:31 Cumulative 6.3 hours Start 2024.08.10 @ 13:25:33 End 2024.08.10 @ 18:38:27 Sessions 1 Manual Loads 0 Difficulty Rogue Special Mode None Game No. 5 Rogue 5 Adventurer 0 Explorer 0 Win Type - Total 0 Types 0/0/0/0/0/0/0/0/0 Lore% 1 Gallery% 5 Achievement% 7 Wizard Run 0 Options --------- Layout 1 ASCII 0 Keyboard 1 Movement Vi Keybinds 0 Fullscreen 1 Font 32/Tamsyn Map View 50x35 Zoom Use 1% Tactical HUD 1 Map Filters NONE Filters NONE Steam 1 RUN: 61e0941c-6792-4d70-a463-7084f3cab29d